bitfinex-derivatives/quotes_BTCF0:USTF0_20251108
["timestamp","ask_amount","ask_price","bid_price","bid_amount"]
[1762577434782,0.60745199,102780.0,102770.0,0.00014631]
[1762577435585,0.5725096,102780.0,102770.0,0.00014631]
[1762577435978,0.52009789,102780.0,102770.0,0.00014631]
[1762577436173,0.70122911,102780.0,102770.0,0.00014631]
[1762577438077,0.0973773,102760.0,102750.0,0.3608]
[1762577438284,0.18901889,102760.0,102750.0,0.3608]
[1762577439186,0.18901889,102760.0,102750.0,0.3618]
[1762577439394,0.24143673,102760.0,102750.0,0.001]
[1762577441788,0.14405943,102760.0,102750.0,0.0983868]
[1762577441990,0.14535946,102760.0,102750.0,0.57036738]
[1762577442782,0.09294162,102760.0,102750.0,0.57036738]
[1762577444588,0.10536829,102760.0,102750.0,0.57036738]
[1762577445091,0.20274559,102760.0,102750.0,0.47298058]
[1762577445486,0.25516343,102760.0,102750.0,0.001]
[1762577445996,0.20274559,102760.0,102750.0,0.3618]
[1762577446190,0.20274559,102760.0,102750.0,0.001]
[1762577446494,0.25516343,102760.0,102750.0,0.001]
[1762577448488,0.22021818,102760.0,102750.0,0.001]
[1762577450192,0.33139876,102760.0,102750.0,0.001]
[1762577450793,0.22021818,102760.0,102750.0,0.001]
[1762577451698,0.23775098,102760.0,102750.0,0.001]
[1762577452100,0.23775098,102760.0,102750.0,0.0983868]
[1762577453101,0.23775098,102760.0,102750.0,0.001]
[1762577453290,0.16780034,102760.0,102750.0,0.001]
[1762577454199,0.23775098,102760.0,102750.0,0.001]
[1762577454399,0.23775098,102760.0,102750.0,0.0983868]
[1762577456899,0.16780034,102760.0,102750.0,0.0983868]
[1762577457104,0.16780034,102760.0,102750.0,0.001]
[1762577458101,0.52860034,102760.0,102750.0,0.001]
[1762577459300,0.58108501,102760.0,102750.0,0.001]
[1762577460490,0.58108501,102760.0,102750.0,0.0983868]
[1762577460798,0.22028501,102760.0,102750.0,0.4591868]
[1762577461704,0.22028501,102760.0,102750.0,0.57036738]
[1762577461908,0.22028501,102760.0,102750.0,0.4591868]
[1762577462098,0.22028501,102760.0,102750.0,0.57036738]
[1762577462298,0.16780034,102760.0,102750.0,0.57036738]
[1762577462802,0.07042304,102760.0,102750.0,0.57036738]
[1762577463000,0.12291801,102760.0,102750.0,0.57036738]
[1762577463206,0.15791682,102760.0,102750.0,0.57036738]
[1762577463502,0.15794682,102760.0,102750.0,0.57036738]
[1762577464406,0.15794682,102760.0,102750.0,0.4591868]
[1762577464614,0.15794682,102760.0,102750.0,0.57036738]
[1762577465094,0.11313682,102760.0,102750.0,0.57036738]
[1762577465300,0.06064185,102760.0,102750.0,0.57036738]
[1762577465498,0.06064185,102760.0,102750.0,0.81364738]
[1762577465694,0.08269185,102760.0,102750.0,0.81364738]
[1762577465894,0.08269185,102760.0,102750.0,0.57036738]
[1762577466698,0.11180945,102760.0,102750.0,0.57036738]
[1762577466910,0.12492945,102760.0,102750.0,0.57036738]
[1762577467111,0.07243448,102760.0,102750.0,0.57036738]
[1762577467515,0.07243448,102760.0,102750.0,0.81364738]
[1762577467715,0.07243448,102760.0,102750.0,0.57036738]
[1762577468011,0.09519448,102760.0,102750.0,0.81364738]
[1762577468203,0.09519448,102760.0,102750.0,0.4591868]
[1762577468406,0.09519448,102760.0,102750.0,0.81364738]
[1762577468717,0.03743567,102760.0,102750.0,0.57036738]
[1762577469014,0.06019567,102760.0,102750.0,0.81364738]
[1762577469813,0.06019567,102760.0,102750.0,0.57036738]
[1762577470006,0.06019567,102760.0,102750.0,0.81364738]
[1762577470206,0.06019567,102760.0,102750.0,0.57036738]
[1762577470407,0.06019567,102760.0,102750.0,0.62598776]
[1762577471316,0.06019567,102760.0,102750.0,0.4591868]
[1762577471618,0.06019567,102760.0,102750.0,0.62598776]
[1762577475117,0.01538567,102760.0,102750.0,0.62598776]
[1762577475416,0.01538567,102760.0,102750.0,0.86926776]
[1762577475918,0.03743567,102760.0,102750.0,0.86926776]
[1762577476112,0.03743567,102760.0,102750.0,0.62598776]
[1762577476514,0.03743567,102760.0,102750.0,0.86926776]
[1762577477616,0.03743567,102760.0,102750.0,0.62598776]
[1762577478119,0.06019567,102760.0,102750.0,0.62598776]
[1762577479216,0.06019567,102760.0,102750.0,0.4591868]
[1762577479521,0.06019567,102760.0,102750.0,0.62598776]
[1762577481920,0.06019567,102760.0,102750.0,0.4591868]
[1762577482223,0.06019567,102760.0,102750.0,0.62598776]
[1762577492236,0.09519448,102760.0,102750.0,0.65219783]
[1762577493330,0.09519448,102760.0,102750.0,0.56879735]
[1762577493723,0.09519448,102760.0,102750.0,0.65219783]
[1762577494928,0.09519448,102760.0,102750.0,0.56879735]
[1762577495736,0.14768945,102760.0,102750.0,0.54258728]
[1762577496029,0.24506675,102760.0,102750.0,0.54258728]
[1762577496730,0.14768945,102760.0,102750.0,0.54258728]
[1762577497433,0.24506675,102760.0,102750.0,0.54258728]
[1762577498332,0.24506675,102760.0,102750.0,0.4591868]
[1762577498541,0.24506675,102760.0,102750.0,0.54258728]
[1762577499527,0.14768945,102760.0,102750.0,0.54258728]
[1762577500133,0.24506675,102760.0,102750.0,0.54258728]
[1762577500335,0.21006794,102760.0,102750.0,0.54258728]
[1762577501141,0.11269064,102760.0,102750.0,0.54258728]
[1762577501842,0.21006794,102760.0,102750.0,0.54258728]
[1762577503840,0.24509989,102760.0,102750.0,0.54258728]
[1762577504052,0.21006794,102760.0,102750.0,0.44520048]
[1762577505149,0.22752361,102760.0,102750.0,0.44520048]
[1762577505748,0.22752361,102760.0,102750.0,0.54258728]
[1762577506354,0.22752361,102760.0,102750.0,0.44520048]
[1762577506554,0.22752361,102760.0,102750.0,0.54258728]
[1762577506858,0.21009931,102760.0,102750.0,0.54258728]
[1762577507059,0.21009931,102760.0,102750.0,0.44520048]
[1762577508665,0.21009931,102760.0,102750.0,0.08440048]
[1762577510157,0.21009931,102760.0,102750.0,0.18178728]
[1762577512165,0.15757297,102760.0,102750.0,0.18178728]
[1762577512366,0.15757297,102760.0,102750.0,0.0983868]
[1762577512566,0.15757297,102760.0,102750.0,0.18178728]
[1762577512867,0.21007009,102760.0,102750.0,0.18178728]
[1762577513056,0.15757297,102760.0,102750.0,0.18178728]
[1762577513763,0.11268976,102760.0,102750.0,0.54258728]
[1762577514969,0.21006706,102760.0,102750.0,0.54258728]
[1762577515869,0.11268976,102760.0,102750.0,0.54258728]
[1762577516071,0.21006706,102760.0,102750.0,0.54258728]
[1762577517767,0.11268976,102760.0,102750.0,0.54258728]
[1762577518573,0.21006706,102760.0,102750.0,0.54258728]
[1762577520573,0.11268976,102760.0,102750.0,0.54258728]
[1762577520873,0.05039044,102760.0,102750.0,0.86926776]
[1762577521073,0.03500477,102760.0,102750.0,0.86926776]
[1762577521275,0.10077517,102770.0,102760.0,0.0973773]
[1762577521573,0.10077517,102770.0,102760.0,0.62497826]
[1762577521875,0.04828108,102770.0,102760.0,0.62497826]
[1762577522376,0.01327631,102770.0,102760.0,1.17033826]
[1762577523062,0.01327631,102770.0,102760.0,1.17233826]
[1762577523773,0.0249016,102770.0,102760.0,1.17433826]
[1762577525168,0.0684616,102770.0,102760.0,1.17433826]
[1762577525564,0.0117716,102770.0,102760.0,1.17433826]
[1762577525970,0.0248916,102770.0,102760.0,1.17433826]
[1762577526478,0.0684516,102770.0,102760.0,1.17433826]
[1762577526685,0.0461416,102770.0,102760.0,1.17433826]
[1762577527876,0.00014631,102770.0,102760.0,1.54798166]
[1762577529174,0.00014631,102770.0,102760.0,1.50101874]
[1762577530377,0.00014631,102770.0,102760.0,1.47312808]
[1762577530581,0.00014631,102770.0,102760.0,1.22984808]
[1762577531084,0.00014631,102770.0,102760.0,1.47312808]
[1762577531275,0.03451631,102770.0,102760.0,1.47312808]
[1762577531470,0.01326631,102770.0,102760.0,1.47312808]
[1762577531873,0.03451631,102770.0,102760.0,1.47312808]
[1762577532075,0.03451631,102770.0,102760.0,1.22984808]
[1762577532276,0.03451631,102770.0,102760.0,1.47312808]
[1762577532682,0.03451631,102770.0,102760.0,1.22984808]
[1762577532879,0.03451631,102770.0,102760.0,1.47312808]
[1762577533277,0.01326631,102770.0,102760.0,1.51895536]
[1762577533482,0.01326631,102770.0,102760.0,1.66855536]
[1762577534483,0.03451631,102770.0,102760.0,1.66855536]
[1762577534683,0.03451631,102770.0,102760.0,1.42527536]
[1762577534883,0.03451631,102770.0,102760.0,1.66855536]
[1762577535183,0.05682631,102770.0,102760.0,1.55739997]
[1762577535385,0.05682631,102770.0,102760.0,1.66855536]
[1762577537184,0.05682631,102770.0,102760.0,1.31411997]
[1762577537986,0.05682631,102770.0,102760.0,1.55739997]
[1762577538187,0.05682631,102770.0,102760.0,1.31411997]
[1762577539275,0.05682631,102770.0,102760.0,1.16451997]
[1762577539983,0.01326631,102770.0,102760.0,1.16451997]
[1762577540287,0.03451631,102770.0,102760.0,1.27567536]
[1762577541290,0.05682631,102770.0,102760.0,1.27567536]
[1762577541790,0.03451631,102770.0,102760.0,1.27567536]
[1762577542185,0.05682631,102770.0,102760.0,1.27567536]
[1762577543091,0.05682631,102770.0,102760.0,1.16451997]
[1762577545090,0.05682631,102770.0,102760.0,1.31411997]
[1762577546091,0.05682631,102770.0,102760.0,1.16451997]
[1762577548292,0.05682631,102770.0,102760.0,1.19073648]
[1762577548982,0.05682631,102770.0,102760.0,0.64537648]
[1762577549187,0.09183108,102770.0,102760.0,1.19061648]
[1762577549992,0.18919898,102770.0,102760.0,0.64537648]
[1762577552695,0.18919898,102770.0,102760.0,0.54799918]
[1762577552990,0.18919898,102770.0,102760.0,0.5021719]
[1762577553196,0.2066883,102770.0,102760.0,0.3648]
[1762577554094,0.24172739,102770.0,102760.0,0.3648]
[1762577554294,0.2066883,102770.0,102760.0,0.3648]
[1762577554795,1.29610024,102770.0,102760.0,0.004]
[1762577554993,1.29610024,102770.0,102740.0,0.48455612]
[1762577554994,0.1546568,102750.0,102740.0,0.45833961]
[1762577555189,0.2422453,102750.0,102740.0,0.36094631]
[1762577555498,0.2072099,102750.0,102740.0,0.36094631]
[1762577556192,0.24218959,102750.0,102740.0,0.36394631]
[1762577556397,0.24218959,102750.0,102740.0,0.36794631]
[1762577556795,0.24218959,102750.0,102740.0,0.00414631]
[1762577557099,0.2102099,102750.0,102740.0,0.00014631]
[1762577557297,0.60596728,102750.0,102740.0,0.00014631]
[1762577557499,0.5710099,102750.0,102740.0,0.00014631]
[1762577560202,0.60591432,102750.0,102740.0,0.00014631]
[1762577561190,0.60590214,102750.0,102740.0,0.00014631]
[1762577563396,0.19254904,102750.0,102740.0,0.45834261]
[1762577564103,0.09516224,102750.0,102740.0,0.569498]
[1762577564702,0.06027,102750.0,102740.0,0.569498]
[1762577568001,0.05927,102750.0,102740.0,0.569498]
[1762577568998,0.1566568,102750.0,102740.0,0.4721017]
[1762577569401,0.1546568,102750.0,102740.0,0.569498]
[1762577569607,0.05827,102750.0,102740.0,0.569498]
[1762577571902,0.1556568,102750.0,102740.0,0.569498]
[1762577572307,0.1556568,102750.0,102740.0,0.4721017]
[1762577573008,0.1556568,102750.0,102740.0,0.569498]
[1762577575310,0.05827,102750.0,102740.0,0.569498]
[1762577577104,0.1556568,102750.0,102740.0,0.569498]
[1762577577411,0.05827,102750.0,102740.0,0.569498]
[1762577579605,0.09316224,102750.0,102740.0,0.569498]
[1762577579816,0.19054904,102750.0,102740.0,0.569498]
[1762577580113,0.19054904,102750.0,102740.0,0.4721017]
[1762577580907,0.19054904,102750.0,102740.0,0.569498]
[1762577581304,0.19054904,102750.0,102740.0,0.4721017]
[1762577583213,0.24310214,102750.0,102740.0,0.569498]
[1762577584509,0.24310214,102750.0,102740.0,0.36094631]
[1762577584911,0.24310214,102750.0,102740.0,0.00014631]
[1762577584912,0.19054904,102750.0,102740.0,0.00014631]
[1762577585104,0.2082099,102750.0,102740.0,0.00014631]
[1762577586105,0.1556568,102750.0,102740.0,0.00014631]
[1762577586302,0.5164568,102750.0,102740.0,0.00014631]
[1762577587113,0.1558863,102740.0,102730.0,0.00011453]
[1762577587313,0.24342085,102740.0,102730.0,0.00011453]
[1762577587820,0.20840703,102740.0,102730.0,0.00011453]
[1762577588316,0.20840703,102740.0,102730.0,0.00111453]
[1762577588510,0.56920703,102740.0,102730.0,0.00111453]
[1762577588711,0.1558958,102730.0,102720.0,0.00014631]
[1762577588909,0.20840754,102730.0,102720.0,0.00014631]
[1762577589108,0.56920754,102730.0,102720.0,0.00014631]
[1762577589314,0.60420111,102730.0,102720.0,0.00014631]
[1762577589612,0.56920754,102730.0,102720.0,0.00014631]
[1762577589920,0.56920754,102730.0,102720.0,0.00314631]
[1762577590424,0.652703,102730.0,102720.0,0.00314631]
[1762577590917,0.60019126,102730.0,102720.0,0.00114631]
[1762577591119,0.67026206,102730.0,102720.0,0.00114631]
[1762577591510,0.23939126,102730.0,102720.0,0.00114631]
[1762577591713,0.60019126,102730.0,102720.0,0.00114631]
[1762577591916,0.23939126,102730.0,102720.0,0.00114631]
[1762577592118,0.65264144,102730.0,102720.0,0.00114631]
[1762577592313,0.65563904,102730.0,102720.0,0.00114631]
[1762577592512,0.21134358,102730.0,102720.0,0.08464177]
[1762577592714,0.21434358,102730.0,102720.0,0.08364177]
[1762577592928,0.11693778,102730.0,102720.0,0.62535253]
[1762577593216,0.11693778,102730.0,102720.0,0.54185707]
[1762577593217,0.2492995,102730.0,102720.0,0.54185707]
[1762577593415,0.2492995,102730.0,102720.0,0.44444177]
[1762577593617,0.2492995,102730.0,102720.0,0.54185707]
[1762577594111,0.2482995,102730.0,102720.0,0.54185707]
[1762577595216,0.2452995,102730.0,102720.0,0.44444177]
[1762577595413,0.2472995,102730.0,102720.0,0.44444177]
[1762577596218,0.2472995,102730.0,102720.0,0.54185707]
[1762577597219,0.2472995,102730.0,102720.0,0.44444177]
[1762577597424,0.2472995,102730.0,102720.0,0.54185697]
[1762577597721,0.2472995,102730.0,102720.0,0.62535243]
[1762577597923,0.19485172,102730.0,102720.0,0.62535243]
[1762577601927,0.19485172,102730.0,102720.0,0.98615243]
[1762577602127,0.09744592,102730.0,102720.0,0.98615243]
[1762577602823,0.19485172,102730.0,102720.0,0.88873723]
[1762577603030,0.1598958,102730.0,102720.0,0.80524177]
[1762577603827,0.1598958,102730.0,102720.0,0.88873723]
[1762577604428,0.1598958,102730.0,102720.0,0.98615253]
[1762577604837,0.1598958,102730.0,102720.0,0.88873723]
[1762577605033,0.1598958,102730.0,102720.0,0.80524177]
[1762577606432,0.2472995,102730.0,102720.0,0.80524177]
[1762577607230,0.2472995,102730.0,102720.0,0.44444177]
[1762577607422,0.19485172,102730.0,102720.0,0.36094631]
[1762577607619,0.19485172,102730.0,102720.0,0.44444177]
[1762577608031,0.19485172,102730.0,102720.0,0.36094631]
[1762577608032,0.27834718,102730.0,102720.0,0.36094631]
[1762577608536,0.19485172,102730.0,102720.0,0.44444177]
[1762577608833,0.2472995,102730.0,102720.0,0.44444177]
[1762577609433,0.2472995,102730.0,102720.0,0.54185707]
[1762577609835,0.2472995,102730.0,102720.0,0.44444177]
[1762577610335,0.29583904,102730.0,102720.0,0.36094631]
[1762577611128,0.29583904,102730.0,102720.0,0.00014631]
[1762577611329,0.65663904,102730.0,102720.0,0.00014631]
[1762577611627,0.60419126,102730.0,102720.0,0.00014631]
[1762577613441,0.67426206,102730.0,102720.0,0.00014631]
[1762577614833,0.1542842,102700.0,102690.0,0.3608]
[1762577615142,0.24180759,102700.0,102690.0,0.4582437]
[1762577615337,0.24180759,102700.0,102690.0,0.54173916]
[1762577615940,0.18934581,102700.0,102690.0,0.54173916]
[1762577616137,0.18934581,102700.0,102690.0,0.54573916]
[1762577619340,0.18934581,102700.0,102690.0,0.3648]
[1762577619542,0.18934581,102700.0,102690.0,0.44829546]
[1762577620343,0.18934581,102700.0,102690.0,0.54573916]
[1762577621048,0.18934581,102700.0,102690.0,0.44829546]
[1762577621846,0.18934581,102700.0,102690.0,0.54573916]
[1762577622046,0.18934581,102700.0,102690.0,0.44829546]
[1762577623138,0.18934581,102700.0,102690.0,0.004]
[1762577623139,0.27284127,102700.0,102690.0,0.004]
[1762577623338,0.32530305,102700.0,102690.0,0.004]
[1762577624342,0.29032853,102700.0,102690.0,0.004]
[1762577624551,0.20683307,102700.0,102690.0,0.004]
[1762577624742,0.20683307,102700.0,102690.0,0.08649546]
[1762577625046,0.20683307,102700.0,102690.0,0.18293916]
[1762577625246,0.20683307,102700.0,102690.0,0.54373916]
[1762577626939,0.24172469,102700.0,102690.0,0.54373916]
[1762577628645,0.24172469,102700.0,102690.0,0.3628]
[1762577628839,0.24172469,102700.0,102690.0,0.44629546]
[1762577630147,0.24172469,102700.0,102690.0,0.54373916]
[1762577631639,0.24172469,102700.0,102690.0,0.44629546]
[1762577631840,0.24172469,102700.0,102690.0,0.3628]
[1762577632048,0.32522015,102700.0,102690.0,0.3628]
[1762577633045,0.29032853,102700.0,102690.0,0.002]
[1762577636751,0.65112853,102700.0,102690.0,0.002]
[1762577638354,0.66861579,102700.0,102690.0,0.002]
[1762577638859,0.30781579,102700.0,102690.0,0.002]
[1762577639152,0.22432033,102700.0,102690.0,0.002]
[1762577639845,0.22432033,102700.0,102690.0,0.4602437]
[1762577640051,0.15437129,102700.0,102690.0,0.4602437]
[1762577640247,0.15437129,102700.0,102690.0,0.0994437]
[1762577640448,0.22432033,102700.0,102690.0,0.4602437]
[1762577641258,0.22432033,102700.0,102690.0,0.54373916]
[1762577642357,0.22378569,102700.0,102690.0,0.54373916]
[1762577643551,0.09137221,102700.0,102690.0,0.54373916]
[1762577643960,0.20628849,102700.0,102690.0,0.54373916]
[1762577644158,0.18880821,102700.0,102690.0,0.54373916]
[1762577644559,0.09137401,102700.0,102690.0,0.54373916]
[1762577645152,0.18880821,102700.0,102690.0,0.44629546]
[1762577646059,0.18880821,102700.0,102690.0,0.3628]
[1762577646261,0.18880821,102700.0,102690.0,0.44629546]
[1762577647261,0.20628849,102700.0,102690.0,0.002]
[1762577647860,0.20628849,102700.0,102690.0,0.3628]
[1762577648251,0.20628849,102700.0,102690.0,0.002]
[1762577649561,0.15383665,102700.0,102690.0,0.002]
[1762577649959,0.22378569,102700.0,102690.0,0.002]
[1762577653464,0.20633563,102700.0,102690.0,0.002]
[1762577655261,0.33516089,102700.0,102690.0,0.002]
[1762577655466,0.69596089,102700.0,102690.0,0.002]
[1762577656270,0.58458569,102700.0,102690.0,0.002]
[1762577658386,0.58458569,102700.0,102690.0,0.001]
[1762577658781,0.05965,102690.0,102680.0,0.36089756]
[1762577659084,0.2095849,102690.0,102680.0,0.36089756]
[1762577659692,0.22139424,102690.0,102680.0,0.36089756]
[1762577660774,0.22139424,102690.0,102680.0,0.36189756]
[1762577661184,0.22139424,102690.0,102680.0,0.36289756]
[1762577662677,0.69356944,102690.0,102680.0,0.00209756]
[1762577662876,0.64107824,102690.0,102680.0,0.00209756]
[1762577663074,0.71102728,102690.0,102680.0,0.00209756]
[1762577663388,0.1571032,102680.0,102670.0,0.36089823]
[1762577663578,0.22710179,102680.0,102670.0,0.36089823]
[1762577664086,0.1571032,102680.0,102670.0,0.36089823]
[1762577664287,0.20958662,102680.0,102670.0,0.36089823]
[1762577664487,0.21058662,102680.0,102670.0,9.823e-05]
[1762577664891,0.21358662,102680.0,102670.0,9.823e-05]
[1762577665089,0.1611032,102680.0,102670.0,9.823e-05]
[1762577665382,0.23310179,102680.0,102670.0,9.823e-05]
[1762577667088,0.1631032,102680.0,102670.0,9.823e-05]
[1762577667591,0.2155315,102680.0,102670.0,9.823e-05]
[1762577667791,0.5239032,102680.0,102670.0,9.823e-05]
[1762577668181,0.57631845,102680.0,102670.0,9.823e-05]
[1762577669287,0.1536517,102650.0,102640.0,0.3608]
[1762577669487,0.18858175,102650.0,102640.0,0.3608]
[1762577669987,0.24097682,102650.0,102640.0,0.3608]
[1762577670199,0.1536612,102640.0,102630.0,0.3608]
[1762577670491,0.18856654,102640.0,102630.0,0.3608]
[1762577671594,0.18856654,102640.0,102630.0,0.3628]
[1762577671793,0.18856654,102640.0,102630.0,0.3638]
[1762577671989,0.67823147,102640.0,102630.0,0.003]
[1762577672190,0.56685627,102640.0,102630.0,0.003]
[1762577673299,0.56685627,102640.0,102630.0,0.002]
[1762577673693,0.56685627,102640.0,102630.0,0.001]
[1762577673887,0.24087789,102640.0,102630.0,0.001]
[1762577674391,0.60167789,102640.0,102630.0,0.001]
[1762577676698,0.24087789,102640.0,102630.0,0.001]
[1762577677095,0.18848282,102640.0,102630.0,0.001]
[1762577681092,0.1536802,102620.0,102610.0,0.4583197]
[1762577681697,0.1536802,102620.0,102610.0,0.3608]
[1762577682303,0.1536802,102620.0,102610.0,0.3648]
[1762577683500,0.1536802,102620.0,102610.0,0.3678]
[1762577684000,0.15380407,102620.0,102610.0,0.3678]
[1762577684192,0.15380407,102620.0,102610.0,0.4653197]
[1762577686398,0.15380407,102620.0,102610.0,0.5766949]
[1762577686701,0.15380407,102620.0,102610.0,0.4653197]
[1762577688507,0.05629387,102620.0,102610.0,0.4653197]
[1762577688802,0.15380407,102620.0,102610.0,0.4653197]
[1762577689698,0.15380407,102620.0,102610.0,0.5766949]
[1762577690007,0.15380407,102620.0,102610.0,0.4791752]
[1762577690305,0.15380407,102620.0,102610.0,0.5766949]
[1762577690601,0.15380407,102620.0,102610.0,0.3678]
[1762577692096,0.18862569,102620.0,102610.0,0.3678]
[1762577693402,0.18862569,102620.0,102610.0,0.3658]
[1762577693602,0.18862569,102620.0,102610.0,0.3628]
[1762577693805,0.18862569,102620.0,102610.0,0.003]
[1762577694195,0.24102076,102620.0,102610.0,0.002]
[1762577694805,0.1537997,102610.0,102600.0,0.3608]
[1762577695308,0.18862132,102610.0,102600.0,0.3608]
[1762577695996,0.18862132,102610.0,102600.0,0.3628]
[1762577696409,0.18862132,102610.0,102600.0,0.4603292]
[1762577696604,0.18862132,102610.0,102600.0,0.3628]
[1762577697107,0.24101639,102610.0,102600.0,0.3628]
[1762577697706,0.24301639,102610.0,102600.0,0.3618]
[1762577698408,0.24501639,102610.0,102600.0,0.3608]
[1762577699305,0.21019477,102610.0,102600.0,0.3608]
[1762577699507,0.1549492,102600.0,102590.0,0.56982861]
[1762577699700,0.18989981,102600.0,102590.0,0.56982861]
[1762577700106,0.18989981,102600.0,102590.0,0.36092111]
[1762577700406,0.18989981,102600.0,102590.0,0.45845981]
[1762577700809,0.09237061,102600.0,102590.0,0.56983501]
[1762577701008,0.09337061,102600.0,102590.0,0.56983501]
[1762577701205,0.19089981,102600.0,102590.0,0.45845981]
[1762577701510,0.19189981,102600.0,102590.0,0.56983501]
[1762577702107,0.19200827,102600.0,102590.0,0.36092111]
[1762577702311,0.62923286,102600.0,102590.0,0.00012111]
[1762577702610,0.58785625,102600.0,102590.0,0.00012111]
[1762577702812,0.69923145,102600.0,102590.0,0.00012111]
[1762577703199,0.71121114,102600.0,102590.0,0.00012111]
[1762577704306,0.64121255,102600.0,102590.0,0.00012111]
[1762577704708,0.71121114,102600.0,102590.0,0.00012111]
[1762577705310,0.64121255,102600.0,102590.0,0.00012111]
[1762577705707,0.71121114,102600.0,102590.0,0.00012111]
[1762577705911,0.2663339,102590.0,102580.0,0.00485218]
[1762577706111,0.6271339,102590.0,102580.0,0.00485218]
[1762577706303,0.67942096,102590.0,102580.0,0.00485218]
[1762577706913,0.67954307,102590.0,102580.0,0.00485218]
[1762577707104,0.67954307,102590.0,102580.0,0.00585218]
[1762577708308,0.1549682,102580.0,102570.0,0.3608]
[1762577708506,0.20727066,102580.0,102570.0,0.3608]
[1762577708908,0.20727066,102580.0,102570.0,0.4583577]
[1762577709104,0.09231162,102580.0,102570.0,0.4583577]
[1762577709310,0.09231162,102580.0,102570.0,0.5697329]
[1762577709603,0.09231162,102580.0,102570.0,0.4583577]
[1762577709811,0.05749463,102580.0,102570.0,0.5697329]
[1762577710002,0.05749463,102580.0,102570.0,0.5717329]
[1762577710202,0.15504283,102580.0,102570.0,0.5717329]
[1762577710414,0.05749463,102580.0,102570.0,0.4603577]
[1762577710710,0.05749463,102580.0,102570.0,0.5697329]
[1762577710911,0.05749463,102580.0,102570.0,0.5707329]
[1762577714311,0.05749463,102580.0,102570.0,0.54306632]
[1762577714503,0.15504283,102580.0,102570.0,0.54306632]
[1762577715213,0.35727706,102580.0,102570.0,0.001]
[1762577717606,0.40950489,102580.0,102570.0,0.001]
[1762577718406,0.77030489,102580.0,102570.0,0.001]
[1762577719206,0.1549777,102570.0,102560.0,0.3608]
[1762577719412,0.27350441,102570.0,102560.0,0.3608]
[1762577720214,0.32573224,102570.0,102560.0,0.3608]
[1762577720415,0.32573224,102570.0,102560.0,0.3628]
[1762577721515,0.32573224,102570.0,102560.0,0.3638]
[1762577722213,0.32573224,102570.0,102560.0,0.003]
[1762577722518,0.29091415,102570.0,102560.0,0.003]
[1762577723315,0.29091415,102570.0,102560.0,0.001]
[1762577724117,0.29091415,102570.0,102550.0,0.3608]
[1762577724118,0.1549872,102560.0,102550.0,0.3608]
[1762577724417,0.27361188,102560.0,102550.0,0.3608]
[1762577724818,0.23878673,102560.0,102550.0,0.3608]
[1762577725021,0.1549967,102550.0,102540.0,0.3608]
[1762577725210,0.27353029,102550.0,102540.0,0.3608]
[1762577726219,0.65173315,102550.0,102540.0,0.003]
[1762577726619,0.68654094,102550.0,102540.0,0.003]
[1762577727118,0.65173315,102550.0,102540.0,0.003]
[1762577727322,0.68654011,102550.0,102540.0,0.003]
[1762577727819,0.68654011,102550.0,102540.0,0.001]
[1762577728015,0.65173315,102550.0,102540.0,0.003]
[1762577730107,0.0975957,102530.0,102520.0,0.36089856]
[1762577730418,0.23726547,102530.0,102520.0,0.45850386]
[1762577730621,0.23726547,102530.0,102520.0,0.36089856]
[1762577730820,0.15355685,102530.0,102520.0,0.36089856]
[1762577731719,0.15355685,102530.0,102520.0,0.46250386]
[1762577731914,0.15355685,102530.0,102520.0,0.46650386]
[1762577732121,0.15355685,102530.0,102520.0,0.55021248]
[1762577732322,0.15355685,102530.0,102520.0,0.46650386]
[1762577732515,0.15355685,102530.0,102520.0,0.45850386]
[1762577734122,0.05596115,102530.0,102520.0,0.6259211]
[1762577734822,0.15355685,102530.0,102520.0,0.54221248]
[1762577735722,0.15355685,102530.0,102520.0,0.45850386]
[1762577735922,0.15355685,102530.0,102520.0,0.54221248]
[1762577738222,0.05596115,102530.0,102520.0,0.6259211]
[1762577743323,0.15355685,102530.0,102520.0,0.54221248]
[1762577744021,0.05596115,102530.0,102520.0,0.54221248]
[1762577744226,0.15355685,102530.0,102520.0,0.54221248]
[1762577744614,0.05596115,102530.0,102520.0,0.6259211]
[1762577745020,0.15355685,102530.0,102520.0,0.6259211]
[1762577745225,0.18837283,102530.0,102520.0,0.6259211]
[1762577745728,0.18837283,102530.0,102520.0,0.54221248]
[1762577746327,0.18837283,102530.0,102520.0,0.6259211]
[1762577746528,0.09077713,102530.0,102520.0,0.6259211]
[1762577747128,0.18837283,102530.0,102520.0,0.54221248]
[1762577748626,0.18837283,102530.0,102520.0,0.45850386]
[1762577748821,0.18837283,102530.0,102520.0,0.54221248]
[1762577751025,0.18837283,102530.0,102520.0,0.45850386]
[1762577751218,0.24060066,102530.0,102520.0,0.54221248]
[1762577752026,0.24060066,102530.0,102520.0,0.44460718]
[1762577752931,0.24060066,102530.0,102520.0,0.54221248]
[1762577753123,0.14300496,102530.0,102520.0,0.54221248]
[1762577753322,0.10818898,102530.0,102520.0,0.6259211]
[1762577754026,0.14315148,102530.0,102520.0,0.6259211]
[1762577754227,0.10818898,102530.0,102520.0,0.6259211]
[1762577757131,0.06531898,102530.0,102520.0,0.6259211]
[1762577757735,0.08632898,102530.0,102520.0,0.6259211]
[1762577757931,0.10926898,102530.0,102520.0,0.6259211]
[1762577759933,0.00010115,102530.0,102520.0,0.65211867]
[1762577760135,0.03479115,102530.0,102520.0,0.48470143]
[1762577760430,0.03479115,102530.0,102520.0,0.65211867]
[1762577761235,0.05773115,102530.0,102520.0,0.65211867]
[1762577761733,0.09273737,102530.0,102520.0,0.48470143]
[1762577761935,0.09273737,102530.0,102520.0,0.65211867]
[1762577762531,0.05773115,102530.0,102520.0,0.65211867]
[1762577762728,0.03479115,102530.0,102520.0,0.65211867]
[1762577763124,0.03510737,102530.0,102520.0,0.65211867]
[1762577763325,0.00010115,102530.0,102520.0,0.65211867]
[1762577763538,0.00010115,102530.0,102520.0,0.77068924]
[1762577764036,5e-08,102530.0,102520.0,0.98833167]
[1762577764439,5e-08,102530.0,102520.0,0.99033167]
[1762577764736,5e-08,102530.0,102520.0,1.5902237]
[1762577765136,5e-08,102530.0,102520.0,1.3463837]
[1762577765335,5e-08,102530.0,102520.0,1.31935912]
[1762577765525,5e-08,102530.0,102520.0,1.56519912]
[1762577765929,5e-08,102530.0,102520.0,1.56619912]
[1762577766226,5e-08,102530.0,102520.0,1.56619203]
[1762577767038,5e-08,102530.0,102520.0,1.32235203]
[1762577767533,5e-08,102530.0,102520.0,1.56619203]
[1762577767736,5e-08,102530.0,102520.0,1.32235203]
[1762577767942,5e-08,102530.0,102520.0,1.56619203]
[1762577768536,0.01264,102550.0,102540.0,0.0975862]
[1762577768834,0.09159622,102560.0,102540.0,1.07031206]
[1762577769041,0.09159622,102560.0,102550.0,0.62579394]
[1762577769237,0.03365,102560.0,102550.0,0.62579394]
[1762577769443,0.01264,102560.0,102550.0,0.62579394]